bitfinex-derivatives/quotes_BNBF0:USTF0_20250330
["timestamp","ask_amount","ask_price","bid_price","bid_amount"]
[1743354834956,1.423,600.21,599.18,2.5305137]
[1743354835158,1.423,600.21,599.19,0.33378394]
[1743354836456,1.423,600.21,599.26,2.5305137]
[1743354837156,1.714,600.2,599.26,2.5305137]
[1743354837959,1.714,600.2,599.24,2.5305137]
[1743354839266,1.714,600.2,599.19,0.33378394]
[1743354847972,1.25747738,600.19,599.19,0.33378394]
[1743354848477,0.33323336,600.18,599.19,0.33378394]
[1743354848978,1.25747738,600.17,599.19,0.33378394]
[1743354849273,0.33324446,600.16,599.19,0.33378394]
[1743354850183,1.25747738,600.15,599.19,0.33378394]
[1743354850383,0.33325557,600.14,599.19,0.33378394]
[1743354850683,1.59073295,600.14,599.19,0.33378394]
[1743354851378,1.25747738,600.13,599.19,0.33378394]
[1743354851780,1.59074405,600.12,599.19,0.33378394]
[1743354852283,1.25747738,600.11,599.19,0.33378394]
[1743354853882,0.33326667,600.12,599.19,0.33378394]
[1743354856283,1.131,600.11,599.19,0.33378394]
[1743354857982,1.13,600.1,599.19,0.33378394]
[1743354858388,1.585,600.09,599.19,0.33378394]
[1743354865590,1.585,600.09,599.2,2.5305137]
[1743354865789,1.585,600.09,599.21,0.3337728]
[1743354866194,1.595,600.08,599.21,0.3337728]
[1743354874294,3.001,600.08,599.21,0.3337728]
[1743354874999,4.437,600.08,599.21,0.3337728]
[1743354877202,4.437,600.08,599.35,2.5305137]
[1743354877398,4.437,600.08,599.36,0.33368926]
[1743354885804,6.008,600.08,599.36,0.33368926]
[1743354888310,6.008,600.08,599.36,2.86420296]
[1743354890317,6.008,600.08,599.4,2.5305137]
[1743354890510,6.008,600.08,599.41,0.33366143]
[1743354891808,6.008,600.08,599.52,2.5305137]
[1743354892806,6.008,600.08,599.55,2.5305137]
[1743354896706,6.008,600.08,599.58,2.5305137]
[1743354898512,6.008,600.08,599.48,0.29003625]
[1743354898714,6.008,600.08,599.49,0.3336169]
[1743354901409,6.008,600.08,599.54,2.5305137]
[1743354904020,6.008,600.08,599.55,2.5305137]
[1743354904816,6.008,600.08,599.49,0.3336169]
[1743354904817,6.008,600.08,599.74,2.5305137]
[1743354906024,6.008,600.08,599.77,2.5305137]
[1743354906921,6.008,600.08,599.6,0.28999879]
[1743354907713,6.008,600.08,599.55,2.5305137]
[1743354908828,6.008,600.08,599.56,0.29003384]
[1743354910630,6.008,600.08,599.49,0.3336169]
[1743354911926,6.008,600.08,599.5,0.29001088]
[1743354912123,6.008,600.08,599.53,2.5305137]
[1743354912323,6.008,600.08,599.54,0.33358908]
[1743354915129,6.008,600.08,599.59,2.5305137]
[1743354916427,6.008,600.08,599.62,2.5305137]
[1743354919238,6.008,600.08,599.58,2.5305137]
[1743354920332,6.008,600.08,599.75,2.5305137]
[1743354921839,6.008,600.08,599.77,2.5305137]
[1743354923334,6.008,600.08,599.9,2.5305137]
[1743354923535,3.001,600.08,599.9,2.5305137]
[1743354923739,0.2899855,600.9,599.9,2.5305137]
[1743354924041,0.33283962,600.89,599.9,2.5305137]
[1743354924234,1.59405521,600.89,599.9,2.5305137]
[1743354924634,1.59405521,600.89,599.94,2.5305137]
[1743354924837,1.26121559,600.88,599.94,2.5305137]
[1743354925144,0.33285069,600.87,599.94,2.5305137]
[1743354925540,1.59406628,600.87,599.94,2.5305137]
[1743354925939,1.458,600.86,599.9,2.5305137]
[1743354926140,0.33286177,600.85,599.9,2.5305137]
[1743354926443,3.37186177,600.85,599.9,2.5305137]
[1743354926642,4.63307736,600.85,599.9,2.5305137]
[1743354926835,1.101,600.84,599.9,2.5305137]
[1743354927036,0.33287285,600.83,599.9,2.5305137]
[1743354927943,0.33287285,600.83,599.96,2.5305137]
[1743354928943,0.33287285,600.83,599.88,2.5305137]
[1743354930245,0.33287285,600.83,599.75,0.28986835]
[1743354933745,1.59408844,600.83,599.75,0.28986835]
[1743354934445,0.33287285,600.83,599.75,0.28986835]
[1743354934648,0.33287285,600.83,599.65,2.5305137]
[1743354935945,0.33287285,600.83,599.66,0.28989612]
[1743354936146,1.49802863,600.82,599.66,0.28989612]
[1743354936350,1.49802863,600.81,599.66,2.82040982]
[1743354936547,1.49802863,600.8,599.66,2.82040982]
[1743354936853,0.33287285,600.83,599.66,2.82040982]
[1743354937051,1.49812559,600.82,599.66,2.82040982]
[1743354937347,3.28112561,600.79,599.66,2.82040982]
[1743354937756,3.28112561,600.79,599.66,2.86403602]
[1743354938352,0.33287285,600.83,599.66,2.86403602]
[1743354938353,1.26121559,600.78,599.66,2.86403602]
[1743354938754,1.26121559,600.77,599.66,2.86403602]
[1743354938947,1.26121559,600.77,599.66,3.15390437]
[1743354939153,1.26121559,600.77,599.67,0.33351676]
[1743354939347,1.26121559,600.76,599.67,0.33351676]
[1743354940150,1.26121559,600.75,599.67,0.33351676]
[1743354940552,0.33287285,600.83,599.67,0.33351676]
[1743354940553,1.26121559,600.74,599.67,0.33351676]
[1743354941259,1.26121559,600.73,599.67,0.33351676]
[1743354942160,1.26121559,600.72,599.67,0.33351676]
[1743354942556,0.33287285,600.83,599.67,0.33351676]
[1743354942859,1.49821204,600.82,599.67,0.33351676]
[1743354943060,1.26249435,600.81,599.67,0.33351676]
[1743354944160,1.26249435,600.8,599.67,0.33351676]
[1743354945061,0.33287285,600.83,599.67,0.33351676]
[1743354951365,1.26239631,600.82,599.67,0.33351676]
[1743354952160,1.26239631,600.81,599.67,0.33351676]
[1743354952960,0.33287285,600.83,599.67,0.33351676]
[1743354953766,1.26245445,600.82,599.67,0.33351676]
[1743354954961,1.26245445,600.81,599.67,0.33351676]
[1743354955467,1.496,600.8,599.67,0.33351676]
[1743354956774,1.496,600.8,599.83,2.5305137]
[1743354959070,1.396,600.79,599.84,2.5305137]
[1743354960564,1.396,600.79,599.8,2.5305137]
[1743354962471,1.396,600.79,599.85,2.5305137]
[1743354964269,1.396,600.79,599.78,0.28984421]
[1743354964473,1.277,600.78,599.78,0.28984421]
[1743354964666,1.277,600.78,599.75,2.5305137]
[1743354965369,1.277,600.78,599.67,0.33351676]
[1743354965767,1.277,600.78,599.68,0.28990337]
[1743354965968,1.26377752,600.77,599.68,0.28990337]
[1743354966569,1.50032809,600.76,599.68,0.28990337]
[1743354966769,1.50032809,600.75,599.68,0.28990337]
[1743354967570,3.28656649,600.74,599.68,0.28990337]
[1743354967766,3.28656649,600.74,599.67,0.33351676]
[1743354968166,1.26377752,600.73,599.67,0.33351676]
[1743354968769,1.26377752,600.73,599.68,0.28989854]
[1743354968970,1.26377752,600.72,599.69,0.33350564]
[1743354969874,1.277,600.78,599.69,0.33350564]
[1743354970571,1.26486994,600.77,599.69,0.33350564]
[1743354971170,1.26486994,600.77,599.77,2.5305137]
[1743354971372,1.277,600.78,599.77,2.5305137]
[1743354971975,1.277,600.78,599.85,2.5305137]
[1743354972775,1.277,600.78,599.69,0.33350564]
[1743354975777,1.381,600.77,599.69,0.33350564]
[1743354977983,1.441,600.76,599.69,0.33350564]
[1743354978483,1.441,600.76,599.8,2.5305137]
[1743354978878,1.441,600.76,599.82,0.33343336]
[1743354979785,1.441,600.76,599.86,2.5305137]
[1743354979983,1.441,600.76,599.88,0.33340001]
[1743354980384,1.688,600.75,599.88,0.33340001]
[1743354983689,1.688,600.75,600.02,2.5305137]
[1743354983888,1.688,600.75,600.03,0.33331666]
[1743354997310,1.441,600.76,600.03,0.33331666]
[1743354999802,1.122,600.75,600.03,0.33331666]
[1743355009712,1.22,600.74,600.03,0.33331666]
[1743355011507,1.22,600.74,600.07,2.5305137]
[1743355011711,1.22,600.74,600.08,0.33328889]
[1743355013614,1.22,600.74,600.4,2.5305137]
[1743355014513,1.684,600.73,600.4,2.5305137]
[1743355015013,1.684,600.73,600.48,2.5305137]
[1743355016312,1.684,600.73,600.22,0.28965001]
[1743355016313,1.684,600.73,600.54,2.5305137]
[1743355017413,1.684,600.73,600.55,2.5305137]
[1743355018615,1.684,600.73,600.56,2.5305137]
[1743355019618,1.684,600.73,600.55,2.5305137]
[1743355020918,1.684,600.73,600.56,2.5305137]
[1743355023029,1.684,600.73,600.43,0.28965001]
[1743355024623,1.684,600.73,600.09,2.5305137]
[1743355024824,1.684,600.73,600.1,0.33327778]
[1743355025726,1.684,600.73,600.1,2.86379148]
[1743355026018,1.684,600.73,600.11,0.28970667]
[1743355026222,1.684,600.73,600.12,0.33326667]
[1743355026720,1.684,600.73,600.13,2.5305137]
[1743355026920,1.684,600.73,600.14,0.33325557]
[1743355028316,1.353,600.72,600.14,0.33325557]
[1743355028820,1.299,600.71,600.55,2.5305137]
[1743355030022,1.299,600.71,600.54,2.5305137]
[1743355031220,1.299,600.71,600.49,2.5305137]
[1743355034119,1.299,600.71,600.5,2.5305137]
[1743355035620,1.299,600.71,600.46,2.5305137]
[1743355036927,1.299,600.71,600.29,0.3331723]
[1743355039922,1.299,600.71,600.38,2.5305137]
[1743355041935,1.299,600.71,600.37,2.5305137]
[1743355043733,1.299,600.71,600.53,2.5305137]
[1743355045838,1.299,600.71,600.59,2.5305137]
[1743355047436,1.299,600.71,600.6,2.5305137]
[1743355048742,0.6722089,600.71,600.6,2.5305137]
[1743355048944,1.684,600.73,600.65,2.5305137]
[1743355050738,1.684,600.73,600.67,2.5305137]
[1743355052140,1.684,600.73,600.47,2.5305137]
[1743355052943,1.684,600.73,600.48,0.28966086]
[1743355053546,1.684,600.73,600.49,2.5305137]
[1743355054550,1.684,600.73,600.48,0.28966086]
[1743355054743,1.684,600.73,600.42,2.5305137]
[1743355055952,1.684,600.73,600.43,0.28965724]
[1743355057247,1.684,600.73,600.43,2.82017094]
[1743355057650,1.684,600.73,600.43,2.5305137]
[1743355057853,1.684,600.73,600.43,2.82016973]
[1743355058846,1.684,600.73,600.45,2.5305137]
[1743355060154,1.684,600.73,600.47,2.5305137]
[1743355061955,1.684,600.73,600.39,2.5305137]
[1743355062154,1.684,600.73,600.45,0.28965844]
[1743355063652,1.684,600.73,600.39,2.5305137]
[1743355064461,1.684,600.73,600.4,0.2897127]
[1743355066856,1.684,600.73,600.29,0.3331723]
[1743355067057,1.684,600.73,600.4,0.28972597]
[1743355067260,1.684,600.73,600.29,0.3331723]
[1743355068156,1.684,600.73,600.3,0.28978508]
[1743355069667,1.684,600.73,600.02,2.5305137]
[1743355069862,1.684,600.73,599.87,2.5305137]
[1743355070064,1.684,600.73,600.26,0.2897887]
[1743355070367,1.684,600.73,599.88,0.33340001]
[1743355071159,1.684,600.73,599.89,0.28981042]
[1743355071365,1.684,600.73,599.89,0.62320487]
[1743355072174,1.455,600.72,599.89,0.62320487]
[1743355075872,1.455,600.72,599.89,0.33339445]
[1743355076673,1.091,600.71,599.89,0.33339445]
[1743355077071,1.091,600.71,599.89,0.62331955]
[1743355081675,1.091,600.71,599.89,0.33339445]
[1743355082980,1.091,600.71,599.89,0.62331351]
[1743355084380,1.091,600.71,599.89,0.28991906]
[1743355084680,1.091,600.71,599.35,2.5305137]
[1743355084979,1.091,600.71,599.37,0.3336837]
[1743355085679,1.24334417,600.7,599.37,0.3336837]
[1743355085879,1.24334417,600.7,599.38,0.29000242]
[1743355086073,1.24334417,600.7,599.4,0.333667]
[1743355086279,1.24334417,600.69,599.4,0.333667]
[1743355086905,2.74431016,600.69,599.4,0.333667]
[1743355087101,2.74431016,600.68,599.4,0.333667]
[1743355087311,1.50096599,600.67,599.4,0.333667]
[1743355087514,1.50096599,600.66,599.4,0.333667]
[1743355087702,1.50096599,600.67,599.4,0.333667]
[1743355087994,1.24334417,600.65,599.4,0.333667]
[1743355088194,1.50096599,600.64,599.4,0.333667]
[1743355088398,1.50096599,600.63,599.4,0.333667]
[1743355088594,1.50096599,600.64,599.4,0.333667]
[1743355089000,2.52034417,600.63,599.4,0.333667]
[1743355089200,2.74431016,600.62,599.4,0.333667]
[1743355089401,1.50096599,600.61,599.4,0.333667]
[1743355089799,2.74431016,600.62,599.4,0.333667]
[1743355090001,1.24334417,600.6,599.4,0.333667]
[1743355090395,1.277,600.63,599.4,0.333667]
[1743355090396,1.24334417,600.59,599.4,0.333667]
[1743355091196,1.24334417,600.58,599.4,0.333667]
[1743355091596,2.60034417,600.58,599.4,0.333667]
[1743355092192,2.73929398,600.57,599.4,0.333667]
[1743355092391,1.49594981,600.56,599.4,0.333667]
[1743355092687,1.49594981,600.55,599.4,0.333667]
[1743355092881,1.49594981,600.54,599.4,0.333667]
[1743355093085,1.49594981,600.53,599.4,0.333667]
[1743355093283,1.49594981,600.52,599.4,0.333667]
[1743355093489,3.22206393,600.52,599.4,0.333667]
[1743355093990,3.22206393,600.51,599.4,0.333667]
[1743355094190,4.85706393,600.51,599.4,0.333667]
[1743355095097,3.22206393,600.5,599.4,0.333667]
[1743355095792,1.635,600.51,599.4,0.333667]
[1743355098589,1.24334417,600.5,599.4,0.333667]
[1743355099495,1.24334417,600.49,599.4,0.333667]
[1743355100592,1.24334417,600.48,599.4,0.333667]
[1743355100788,0.33307242,600.47,599.4,0.333667]
[1743355101188,1.24334417,600.46,599.4,0.333667]
[1743355101392,0.33308352,600.45,599.4,0.333667]
[1743355101590,3.87746993,600.44,599.4,0.333667]
[1743355101795,3.87746993,600.43,599.4,0.333667]
[1743355101991,3.87746993,600.42,599.4,0.333667]
[1743355102189,3.87746993,600.41,599.4,0.333667]
[1743355102393,4.77795697,600.4,599.4,0.333667]
[1743355102594,4.77793307,600.39,599.4,0.333667]
[1743355102892,5.44459063,600.38,599.4,0.333667]
[1743355103088,4.87718396,600.37,599.4,0.333667]
[1743355103398,4.87718951,600.36,599.4,0.333667]
[1743355103691,4.87719506,600.35,599.4,0.333667]
[1743355103893,4.21061448,600.34,599.4,0.333667]
[1743355104090,3.84714382,600.33,599.4,0.333667]
[1743355104396,3.84714382,600.32,599.4,0.333667]
[1743355104691,7.06491684,600.31,599.4,0.333667]
[1743355104890,3.84714382,600.3,599.4,0.333667]
[1743355105093,3.84714382,600.29,599.4,0.333667]
[1743355105292,1.4796707,600.28,599.4,0.333667]
[1743355105496,1.4796707,600.27,599.4,0.333667]
[1743355105698,1.4796707,600.26,599.4,0.333667]
[1743355105893,1.4796707,600.25,599.4,0.333667]
[1743355106098,1.4796707,600.24,599.4,0.333667]
[1743355106291,1.4796707,600.23,599.4,0.333667]
[1743355106491,1.4796707,600.22,599.4,0.333667]
[1743355106698,1.4796707,600.21,599.4,0.333667]
[1743355106900,1.4796707,600.2,599.4,0.333667]
[1743355107094,1.4796707,600.19,599.4,0.333667]
[1743355107290,1.24334417,600.19,599.4,0.333667]
[1743355107998,3.18574372,600.18,599.4,0.333667]
[1743355108596,2.47634417,600.17,599.4,0.333667]
[1743355109300,1.24334417,600.16,599.4,0.333667]
[1743355109896,1.24334417,600.15,599.4,0.333667]
[1743355110093,2.74434417,600.15,599.4,0.333667]
[1743355110494,1.24334417,600.14,599.4,0.333667]
[1743355111198,1.24334417,600.13,599.4,0.333667]
[1743355112401,1.24334417,600.12,599.4,0.333667]
[1743355113403,1.24334417,600.11,599.4,0.333667]
[1743355113904,1.501,600.15,599.4,0.333667]
[1743355114507,1.21459591,600.14,599.4,0.333667]
[1743355115206,1.21459591,600.13,599.4,0.333667]
[1743355116001,1.21459591,600.12,599.4,0.333667]
[1743355116602,3.15938468,600.11,599.4,0.333667]
[1743355117304,1.21459591,600.1,599.4,0.333667]
[1743355118304,1.501,600.15,599.4,0.333667]
[1743355120508,1.641,600.14,599.4,0.333667]
[1743355122608,1.76,600.13,599.4,0.333667]
[1743355136317,1.533,600.12,599.4,0.333667]
[1743355140422,1.112,600.11,599.4,0.333667]
[1743355146025,1.112,600.11,599.44,2.5305137]
[1743355146224,1.112,600.11,599.45,0.33363916]
[1743355149728,1.112,600.11,599.54,2.5305137]
[1743355150027,1.112,600.11,599.55,0.33358352]
[1743355151024,1.583,600.1,599.55,0.33358352]
[1743355153230,1.807,600.09,599.55,0.33358352]
[1743355153730,1.807,600.09,599.63,2.5305137]
[1743355153929,1.807,600.09,599.64,0.33353345]
[1743355165828,1.469,600.08,599.64,0.33353345]
[1743355169537,3.205,600.08,599.64,0.33353345]
[1743355170732,4.841,600.08,599.64,0.33353345]
[1743355174739,4.841,600.08,599.64,2.86404715]
[1743355176344,4.841,600.08,599.64,0.33353345]
[1743355192254,4.841,600.08,599.63,0.29004109]
[1743355192753,4.841,600.08,598.8,2.5305137]
[1743355192948,4.841,600.08,598.82,0.33399018]
[1743355198956,6.614,600.08,598.82,0.33399018]
[1743355210372,6.614,600.08,599.02,2.5305137]
[1743355211572,6.614,600.08,599.04,0.33386752]
[1743355211774,6.614,600.08,599.29,2.5305137]
[1743355212073,6.614,600.08,599.3,0.33372267]
[1743355213678,6.614,600.08,599.3,2.86423637]
[1743355215376,6.614,600.08,599.33,2.5305137]
[1743355215577,6.614,600.08,599.34,0.3337004]
[1743355229592,6.614,600.08,599.35,2.5305137]
[1743355229792,6.614,600.08,599.36,0.33368926]
[1743355231488,6.614,600.08,599.45,2.5305137]
[1743355232091,6.614,600.08,599.46,0.3336336]
[1743355235591,6.614,600.08,599.65,2.5305137]
[1743355235796,6.614,600.08,599.66,0.33352232]
[1743355238590,2.03631945,600.08,599.66,0.33352232]
[1743355238789,1.773,600.08,599.66,0.33352232]
[1743355239594,0.9018152,600.08,599.66,0.33352232]
[1743355239796,0.28991544,601.23,599.66,0.33352232]
[1743355239997,0.33265693,601.22,599.66,0.33352232]
[1743355241299,1.543,601.21,599.66,0.33352232]
[1743355241503,0.33266799,601.2,599.66,0.33352232]
[1743355242700,2.04266799,601.2,599.66,0.33352232]
[1743355243402,3.22428132,601.2,599.66,0.33352232]
[1743355243602,0.91085596,601.19,599.66,0.33352232]
[1743355243901,0.33267906,601.18,599.66,0.33352232]
[1743355244097,1.50151077,601.17,599.66,0.33352232]
[1743355244402,1.8342009,601.16,599.66,0.33352232]
[1743355244702,3.32720643,601.15,599.66,0.33352232]
[1743355244900,1.50151077,601.14,599.66,0.33352232]
[1743355245103,1.50151077,601.13,599.66,0.33352232]
[1743355245298,1.50151077,601.12,599.66,0.33352232]
[1743355245503,1.50151077,601.11,599.66,0.33352232]
[1743355245703,1.50151077,601.1,599.66,0.33352232]
[1743355245898,1.50151077,601.09,599.66,0.33352232]
[1743355246100,1.50151077,601.08,599.66,0.33352232]
[1743355246301,1.50151077,601.07,599.66,0.33352232]
[1743355246501,1.50151077,601.06,599.66,0.33352232]
[1743355246705,1.50151077,601.05,599.66,0.33352232]
[1743355247001,1.50151077,601.04,599.66,0.33352232]
[1743355247198,1.50151077,601.03,599.66,0.33352232]
[1743355247404,1.50151077,601.04,599.66,0.33352232]
[1743355247607,1.50151077,601.03,599.66,0.33352232]
[1743355247806,2.6831241,601.02,599.66,0.33352232]
[1743355248006,1.50151077,601.01,599.66,0.33352232]
[1743355248305,1.50151077,601.0,599.66,0.33352232]
[1743355248504,1.50151077,600.99,599.66,0.33352232]
[1743355248809,1.50151077,600.98,599.66,0.33352232]
[1743355249109,1.50151077,600.97,599.66,0.33352232]
[1743355249306,1.50151077,600.96,599.66,0.33352232]
[1743355249506,1.50151077,600.97,599.66,0.33352232]
[1743355249706,1.50151077,600.96,599.66,0.33352232]
[1743355249902,1.50151077,600.97,599.66,0.33352232]
[1743355250107,4.57370544,600.96,599.66,0.33352232]
[1743355250307,1.50151077,600.95,599.66,0.33352232]
[1743355250708,2.6831241,600.94,599.66,0.33352232]
[1743355251104,1.50151077,600.93,599.66,0.33352232]
[1743355251307,1.50151077,600.92,599.66,0.33352232]
[1743355251609,1.50151077,600.91,599.66,0.33352232]
[1743355251809,1.50151077,600.9,599.66,0.33352232]
[1743355252010,1.18161333,600.93,599.66,0.33352232]
[1743355252210,1.49782949,600.92,599.66,0.33352232]
[1743355252512,1.18161333,600.89,599.66,0.33352232]
[1743355254006,1.18161333,600.88,599.66,0.33352232]
[1743355255205,1.18161333,600.87,599.66,0.33352232]
[1743355256109,1.18161333,600.86,599.66,0.33352232]
[1743355256909,1.98474085,600.92,599.66,0.33352232]
[1743355257610,3.06238584,601.04,599.66,0.33352232]
[1743355257611,1.2402688,600.91,599.66,0.33352232]
[1743355258206,1.2402688,600.9,599.66,0.33352232]
[1743355258811,3.8942586,601.0,599.66,0.33352232]
[1743355258812,1.2402688,600.89,599.66,0.33352232]
[1743355259607,1.49758473,601.08,599.66,0.33352232]
[1743355259806,3.8937203,601.12,599.66,0.33352232]
[1743355260006,4.22639437,601.11,599.66,0.33352232]
[1743355260214,1.83028308,601.1,599.66,0.33352232]
[1743355260513,0.33272887,601.09,599.66,0.33352232]
[1743355260814,1.57283456,601.09,599.66,0.33352232]
[1743355261610,1.24010569,601.08,599.66,0.33352232]
[1743355262412,1.24010569,601.07,599.66,0.33352232]
[1743355262927,1.24010569,601.06,599.66,0.33352232]
[1743355264016,1.24010569,601.05,599.66,0.33352232]
[1743355264409,0.33272887,601.09,599.66,0.33352232]
[1743355265416,1.149,601.08,599.66,0.33352232]
[1743355267017,1.149,601.08,599.68,2.5305137]
[1743355267316,1.149,601.08,599.7,0.33350008]
[1743355269119,1.149,601.08,599.89,2.5305137]
[1743355271017,1.149,601.08,599.9,0.33338889]
[1743355274315,1.2399977,601.07,599.9,0.33338889]
[1743355274820,2.3649977,601.07,599.9,0.33338889]
[1743355275221,1.2399977,601.06,599.9,0.33338889]
[1743355276817,1.125,601.07,599.9,0.33338889]
[1743355281225,2.731,601.07,599.9,0.33338889]
[1743355282129,1.2399977,601.06,599.9,0.33338889]
[1743355282723,1.2399977,601.05,599.9,0.33338889]
[1743355284236,1.2399977,601.04,599.9,0.33338889]
[1743355284935,1.2399977,601.03,599.9,0.33338889]
[1743355285832,1.2399977,601.02,599.9,0.33338889]
[1743355286431,1.2399977,601.04,599.9,0.33338889]
[1743355287631,3.07647211,601.05,599.9,0.33338889]
[1743355288031,1.83647441,601.05,599.9,0.33338889]
[1743355288234,0.33275101,601.05,599.9,0.33338889]
[1743355292741,1.24727675,601.05,599.9,0.33338889]
[1743355293042,1.2399977,601.04,599.9,0.33338889]
[1743355293239,0.33276209,601.03,599.9,0.33338889]
[1743355293640,1.2399977,601.02,599.9,0.33338889]
[1743355294039,1.2399977,601.01,599.9,0.33338889]
[1743355294441,2.74486579,601.01,599.9,0.33338889]
[1743355294837,1.2399977,601.0,599.9,0.33338889]
[1743355295340,1.2399977,600.99,599.9,0.33338889]
[1743355295943,1.2399977,600.98,599.9,0.33338889]
[1743355296143,2.5299977,600.98,599.9,0.33338889]
[1743355296540,3.22602699,600.97,599.9,0.33338889]
[1743355296736,1.50813252,600.96,599.9,0.33338889]
[1743355296938,1.50813252,600.95,599.9,0.33338889]
[1743355297142,1.50813252,600.94,599.9,0.33338889]
[1743355297343,1.50813252,600.93,599.9,0.33338889]
[1743355297538,1.50813252,600.92,599.9,0.33338889]
[1743355297737,1.50813252,600.91,599.9,0.33338889]
[1743355297938,1.50813252,600.9,599.9,0.33338889]
[1743355298141,1.50813252,600.89,599.9,0.33338889]
[1743355299144,1.2399977,600.88,599.9,0.33338889]
[1743355299939,1.2399977,600.87,599.9,0.33338889]
[1743355300538,1.2399977,600.86,599.9,0.33338889]
[1743355301545,1.2399977,600.85,599.9,0.33338889]
[1743355301942,2.41142299,600.94,599.9,0.33338889]
[1743355301943,1.2399977,600.84,599.9,0.33338889]
[1743355302340,1.50813252,600.83,599.9,0.33338889]
[1743355302739,2.74813022,600.82,599.9,0.33338889]
[1743355303045,1.50813252,600.81,599.9,0.33338889]
[1743355303246,2.74643245,600.82,599.9,0.33338889]
[1743355303847,1.2399977,600.82,599.9,0.33338889]
[1743355304148,1.2399977,600.81,599.9,0.33338889]
[1743355305049,1.2399977,600.8,599.9,0.33338889]
[1743355305847,1.289,600.79,599.9,0.33338889]
[1743355313454,1.387,600.78,599.9,0.33338889]
[1743355322358,1.596,600.77,599.9,0.33338889]
[1743355324661,1.604,600.76,599.9,0.33338889]
[1743355328268,1.451,600.75,599.9,0.33338889]
[1743355336368,1.451,600.75,599.93,2.5305137]
[1743355337576,1.451,600.75,599.9,0.33338889]
[1743355337577,1.451,600.75,599.96,2.5305137]
[1743355338369,1.451,600.75,599.95,2.5305137]
[1743355338769,1.50990326,600.74,599.95,2.5305137]
[1743355338976,1.51002983,600.73,599.95,2.5305137]
[1743355339275,1.2503545,600.74,599.95,2.5305137]
[1743355339474,1.2503545,600.72,599.95,2.5305137]
[1743355340273,1.2503545,600.71,599.93,0.2898599]
[1743355340983,1.51041772,600.7,599.93,0.2898599]
[1743355341183,1.51041772,600.69,599.93,0.2898599]
[1743355341384,1.51041772,600.68,599.93,0.2898599]
[1743355341586,1.51041772,600.67,599.93,0.2898599]
[1743355341878,1.51041772,600.66,599.93,0.2898599]
[1743355342083,1.51041772,600.65,599.93,0.2898599]
[1743355342285,1.51041772,600.64,599.93,0.2898599]
[1743355342485,1.51041772,600.63,599.93,0.2898599]
[1743355342678,3.25153193,600.65,599.93,0.2898599]
[1743355342882,3.25153193,600.65,599.9,0.33338889]
[1743355342883,1.2503545,600.63,599.9,0.33338889]
[1743355343087,1.50994263,600.62,599.46,2.5305137]
[1743355343284,1.50994263,600.61,599.47,0.33362803]
[1743355343489,1.50994263,600.6,599.47,0.33362803]
[1743355343691,1.50994263,600.59,599.47,0.33362803]
[1743355343889,1.50994263,600.58,599.47,0.33362803]
[1743355344089,1.2503545,600.57,599.48,0.28995771]
[1743355344289,1.2503545,600.57,599.49,0.3336169]
[1743355344891,1.2503545,600.56,599.49,0.3336169]
[1743355345291,1.2503545,600.55,599.49,0.3336169]
[1743355346188,1.2503545,600.54,599.49,0.3336169]
[1743355346993,1.50934881,600.65,599.49,0.3336169]
[1743355347194,1.50934881,600.64,599.49,0.3336169]
[1743355347394,1.50934881,600.63,599.49,0.3336169]
[1743355347594,1.5093971,600.65,599.49,0.3336169]
[1743355347791,1.50941715,600.65,599.49,0.3336169]
[1743355347996,1.99989681,600.66,599.49,0.3336169]
[1743355348188,1.2499758,600.64,599.49,0.3336169]
[1743355348895,1.518,600.63,599.49,0.3336169]
[1743355349196,2.7679758,600.63,599.49,0.3336169]
[1743355349898,1.518,600.63,599.49,0.3336169]
[1743355350098,1.571,600.62,599.49,0.3336169]
[1743355351695,1.571,600.62,599.65,2.5305137]
[1743355354391,1.571,600.62,599.6,2.5305137]
[1743355356499,1.674,600.61,599.6,2.5305137]
[1743355357095,1.674,600.61,599.59,2.5305137]
[1743355358799,1.674,600.61,599.53,2.5305137]
[1743355358999,1.674,600.61,599.54,0.33358908]
[1743355359200,1.674,600.61,599.58,0.28993839]
[1743355360904,1.674,600.61,599.54,0.33358908]
[1743355361504,1.339,600.6,599.54,0.33358908]
[1743355361998,1.339,600.6,599.59,2.5305137]
[1743355364201,1.339,600.6,599.66,2.5305137]
[1743355366201,1.339,600.6,599.59,0.28995409]